Workbook

Sheet HOME
D1: 2023 Indoor Agriculture Application
D2: PNM Business Energy Efficiency Program
A16: Why improve energy efficiency?
B17: Directly improves profitability by cutting operating costs | E17: Distinguishes your business as an energy efficiency steward in the community | H17: Qualifies your business for rebates that can cover portions of the upgrade cost
A20: Application Process | F20: Click on a quick link below:
A22: 1. | B22: Submit a Pre-Notification Application to reserve funding (if required). | F22: Administrative
A25: 2. | B25: Install the qualified technology.
A27: 3. | B27: Complete, sign and submit Final Application with all required documentation within 6 months of project completion.
F28: Worksheets
A31: 4. | B31: The incentive check will be sent 4 to 6 weeks after approval of the Final Application.
A39: Contact Our PNM Business Energy Efficiency Team
A42: 320 Gold Avenue SW, Ste 500 Albuquerque, NM 87102 | D42: (505) 938-9400 Main | F42: energyefficiency@pnm.com
F43: www.pnmenergyefficiency.com

Sheet Checklist
D1: APPLICATION CHECKLIST
A61: APPLICATION CHECKLIST (CONTINUED)

Sheet Applicant Info
D1: APPLICANT INFORMATION | J1: For office use only: | M1: Business Type | N1: Tax Status | Q1: State
J2: Application # | K2: Revision # | M2: Assembly | N2: Corporation (Inc, PC, etc.) | Q2: AK
M3: College/University | N3: Government Agency | Q3: AL
A4: Application Type: | G4: Check ONE box below:* | M4: Dwelling Unit | N4: Individual | Q4: AR
M5: Grocery | N5: Partnership | Q5: AZ
C6: New Construction | H6: Pre-Notification | J6: Date | M6: Heavy Industry | N6: Exempt | P6: =IF(G6>0,"Yes",) -> 0 | Q6: CA
C7: or | H7: or | M7: Hotel/Motel Common Areas | O7: New pre notification checkbox flag: | Q7: CO
C8: Retrofit | H8: Final Application | J8: Date | M8: K-12 School | O8: FALSE | Q8: CT
M9: Light Industry | Q9: DE
A10: Customer Information* | M10: Medical | O10: Multifacility checkbox flag: | Q10: FL
A11: PNM Account Number where measures installed | M11: Miscellaneous | O11: FALSE | Q11: GA
M12: Office | Q12: HI
C13: This Application represents multiple accounts / premises | G13: 1. Enter number of Accounts / Premises -------> | K13: _________ | M13: Restaurant | O13: =is ->  | Q13: IA
G14: 2. If yes: Complete Multi-Facility Worksheet -------> CLICK HERE | M14: Retail/Service | Q14: ID
A15: Name of Company* | G15: Name Exactly as it Appears on Your Utility Bill* | M15: Warehouse | Q15: IL
Q16: IN
Q17: KS
Q18: KY
A19: Name of Contact Person* | G19: Title* | Q19: LA
Q20: MA
A21: Telephone #* | G21: Fax # | Q21: MD
A22: Email Address* | Q22: ME
Q23: NC
A24: Building Type* | Q24: ND
A25: Address Where Measures Installed* | Q25: MI
A26: City Where Measures Installed* | G26: State* | I26: =IF(E26="","","NM") ->  | J26: Zip* | Q26: MN
A27: Mailing Address* | Q27: MS
A28: City* | G28: State* | J28: Zip* | Q28: MO
A29: Taxpayer ID Number (SSN/FEIN)* | G29: Tax Status* | Q29: MT
A30: Contractor Information | Q30: NE
A31: Contracting Company* | Q31: NV
A32: Contractor Name* | G32: Contractor Phone Number* | Q32: NH
A33: Contractor Email Address* | Q33: NJ
A34: Contractor Mailing Address* | Q34: NM
A35: City* | G35: State* | J35: Zip* | Q35: NY
A36: Third Party Payment Release | Q36: OH
Q37: OK
C38: I request that the incentive check be sent to the third party below | H38: Check here if the third party payee is the contractor (Contractor must be a PNM Authorized Contractor to be eligible for third party payment) | Q38: OR
Q39: PA
A40: Name of Third Party* | Q40: RI
A41: Name of Third Party Contact Person* | G41: Title* | Q41: SC
Q42: SD
A43: Third Party Phone #* | G43: Fax # | Q43: TN
A44: Third Party Mailing Address* | Q44: TX
A45: Third Party City* | G45: State* | J45: Zip* | Q45: UT
A46: Third Party Email Address* | Q46: VA
A47: Third Party Taxpayer ID # (SSN/FEIN)* | G47: Tax Status* | Q47: VT
A48: Incentive Summary | Q48: WA
A49: Total Incentive Requested | F49: Total Project Cost PRE-TAX * REQUIRED * | J49: =IF(O8=TRUE, "Estimated Project Completion Date", "Project Completion Date") -> Project Completion Date | Q49: WI
A50: =MIN(F67, F50*0.5,400000) -> 0 | Q50: WV
Q51: WY
A52: AGREEMENT
A53: I understand that in the event funds are reserved based on a pre-notification, the payment of incentives will be based upon the Final Application and program terms and conditions, and that the PNM Business Energy Efficiency program is subject to change or cancellation at any time and without notice. PNM is not responsible for any lost, late, stolen, ineligible, illegible, misdirected or postage-due mail. All completed submissions become the property of PNM and will not be returned. PNM makes no guarantees about the availability of products or rebate forms. By participating in the PNM Business Energy Efficiency program, customers agree to waive any claims and release PNM from any liability for damages of any kind. Rebates are funded by a charge on PNM electric customer bills.
A54: I have read and understand the program requirements, measure specifications, and Terms & Conditions set forth in this application and agree to abide by those requirements. Furthermore, I concur that I must meet all eligibility criteria in order to be paid under this program.
A55: As an eligible customer, I verify that the signature below is my own and that the information is correct. I am requesting consideration for participation under this program. By signing this agreement I attest that I understand and agree to abide by all Program terms and conditions.
A56: Customer Signature (PNM Customer) | H56: Third Party Signature
F57: Please sign by hand or via DocuSign®
A58: Print Customer Name | H58: Print Third Party Name
A60: Date | H60: Date
B67: For Office Use Only | F67: =SUM(F68:F70) -> 0
B68: Indoor Agricutlure Incentive | F68: =+'Indoor Agriculture Rebates'!L23 -> 0
B69: HVAC Incentives | F69: =HVAC!H55 -> 0
B70: Custom Incentive | F70: =Custom!F18 -> 0

Sheet Multi-Facility
B1: LIGHTING MULTIPLE FACILITY WORKSHEET
A2: Use this worksheet ONLY if installing the SAME measure in facilities with different service addresses and unique account numbers.
A3: If a project encompasses multiple buildings at the same premise, this worksheet is not required.
A4: For official use only | B4: Pre-Notification Date: | C4: =IF(ISBLANK('Applicant Info'!$K$6)," ",'Applicant Info'!$K$6) ->  | D4: Final Application Date: | E4: =IF(ISBLANK('Applicant Info'!$K$8)," ",'Applicant Info'!$K$8) -> 
A5: Application # | C5: Business Name: | D5: =IF(ISBLANK('Applicant Info'!$A$16)," ",'Applicant Info'!$A$16) -> 
A6: Prepared by: | B6: =IF(ISBLANK('Applicant Info'!$A$20)," ",'Applicant Info'!$A$20) ->  | D6: Contact #: | E6: ='Applicant Info'!$D$21 -> 0
A8: Project Locations
A9: Service Address | B9: Account # | C9: Replacement Equipment Type 1 | D9: Replacement Equipment Type 2 | E9: Replacement Equipment Qty | F9: Existing Equipment Description | G9: Existing Equipment Qty
A35: Total | E35: =SUM(E10:E34) -> 0 | G35: =SUM(G10:G34) -> 0
A200: Measure Type 1
A201: Interior Lighting
A202: Exterior Lighting
A203: 24/7 Lighting
A204: Plug Load Controls
A205: Custom
A206: HVAC
A207: Envelope
A208: Refrigeration
A209: Food Service Equipment
A210: Motors
A211: VSDs
A213: Measure Type 1 | B213: Measure Type 2 | C213: Unit | D213: Incentive | F213: Measure Type 1
A214: Interior Lighting | B214: Screw-in Compact Fluorescent Lights 5-15 Watts | C214: Lamp | D214: 1 | F214: Interior Lighting
A215: Interior Lighting | B215: Screw-in Compact Fluorescent Lights 16-26 Watts | C215: Lamp | D215: 1 | F215: Exterior Lighting
A216: Interior Lighting | B216: Screw-in Compact Fluorescent Lights 27 Watts or higher | C216: Lamp | D216: 2 | F216: 24/7 Lighting
A217: Interior Lighting | B217: Screw-in Compact Fluorescent Lights Inside Dwelling Units 5-15 Watts | C217: Lamp | D217: 1 | F217: HVAC
A218: Interior Lighting | B218: Screw-in Compact Fluorescent Lights Inside Dwelling Units 16-26 Watts | C218: Lamp | D218: 1 | F218: Envelope
A219: Interior Lighting | B219: Screw-in Compact Fluorescent Lights Inside Dwelling Units 27 Watts or higher | C219: Lamp | D219: 2 | F219: Refrigeration
A220: Interior Lighting | B220: Hardwired Compact Fluorescent Fixtures 29W or Less | C220: Fixture | D220: 20 | F220: Food Service Equipment
A221: Interior Lighting | B221: Hardwired Compact Fluorescent Fixtures 30W or Greater | C221: Fixture | D221: 40 | F221: Plug Load Controls
A222: Interior Lighting | B222: Hardwired Compact Fluorescent Lights Inside Dwelling Units 29W or Less | C222: Fixture | D222: 5 | F222: Motors
A223: Interior Lighting | B223: Hardwired Compact Fluorescent Lights Inside Dwelling Units 30W or Greater | C223: Fixture | D223: 10 | F223: VSDs
A224: Interior Lighting | B224: Permanent Removal of Lamp from Existing Fixture 2-ft Lamp - T12 basecase | C224: Lamp Removed | D224: 4.5
A225: Interior Lighting | B225: Permanent Removal of Lamp from Existing Fixture 3-ft Lamp - T12 basecase | C225: Lamp Removed | D225: 6
A226: Interior Lighting | B226: Permanent Removal of Lamp from Existing Fixture 4-ft Lamp - T12 basecase | C226: Lamp Removed | D226: 7.5
A227: Interior Lighting | B227: Permanent Removal of Lamp from Existing Fixture 8-ft Lamp - T12 basecase | C227: Lamp Removed | D227: 15
A228: Interior Lighting | B228: Permanent Removal of Lamp from Existing Fixture 2-ft Lamp - T8 basecase | C228: Lamp Removed | D228: 3
A229: Interior Lighting | B229: Permanent Removal of Lamp from Existing Fixture 3-ft Lamp - T8 basecase | C229: Lamp Removed | D229: 4
A230: Interior Lighting | B230: Permanent Removal of Lamp from Existing Fixture 4-ft Lamp - T8 basecase | C230: Lamp Removed | D230: 5
A231: Interior Lighting | B231: Permanent Removal of Lamp from Existing Fixture 8-ft Lamp - T8 basecase | C231: Lamp Removed | D231: 10
A232: Interior Lighting | B232: High Performance (HP) T8 or Reduced Wattage (RW) 4-Foot T8 and Electronic Ballast 4-ft HP Lamp and Ballast | C232: Lamp | D232: 6
A233: Interior Lighting | B233: High Performance (HP) T8 or Reduced Wattage (RW) 4-Foot T8 and Electronic Ballast 4-ft RW Lamp and Ballast | C233: Lamp | D233: 6
A234: Interior Lighting | B234: High Performance (HP) T8 or Reduced Wattage (RW) 4-Foot T8 and Electronic Ballast 1 Lamp 8-ft T12 to 2 Lamp 4-ft HP T8 | C234: Lamp | D234: 6
A235: Interior Lighting | B235: High Performance (HP) T8 or Reduced Wattage (RW) 4-Foot T8 and Electronic Ballast 1 Lamp 8-ft T12 to 2 Lamp 4-ft RW T8 | C235: Lamp | D235: 6
A236: Interior Lighting | B236: Standard T8 and Electronic Ballast 2-ft Lamp and Ballast | C236: Lamp | D236: 3
A237: Interior Lighting | B237: Standard T8 and Electronic Ballast 3-ft Lamp and Ballast | C237: Lamp | D237: 3
A238: Interior Lighting | B238: Standard T8 and Electronic Ballast 4-ft or U-Tube and Ballast | C238: Lamp | D238: 3
A239: Interior Lighting | B239: T12 to T5 Lamps and Ballast | C239: Lamp | D239: 6
A240: Interior Lighting | B240: Reduced Wattage 8 Foot T8 and Electronic Ballast 8-foot T12 to RW T8 | C240: Lamp | D240: 6
A241: Interior Lighting | B241: Reduced Wattage (RW) 4-Foot OR 8-Foot T8 LAMP ONLY 4-ft T8 Reduced Wattage Lamp Only | C241: Lamp | D241: 0.5
A242: Interior Lighting | B242: Reduced Wattage (RW) 4-Foot OR 8-Foot T8 LAMP ONLY 8-ft T8 Reduced Wattage Lamp Only | C242: Lamp | D242: 0.5
A243: Interior Lighting | B243: New High Bay T8/T5 Fluorescent Fixtures with Electronic Ballast replacing HID T8/T5 (w/ electronic ballast) | C243: Watt Reduction*** | D243: 0.3
A244: Interior Lighting | B244: LED Lighting LED, T-1, or Electroluminescent Exit Signs | C244: Sign | D244: 20
A245: Interior Lighting | B245: LED Lighting LED Lamp *NEW Higher Rebate! | C245: Lamp | D245: 12
A246: Interior Lighting | B246: LED Lighting LED Recessed Downlight Fixture *NEW Higher Rebate! | C246: Fixture | D246: 20
A247: Interior Lighting | B247: LED Lighting LED Open Sign | C247: Sign | D247: 25
A248: Interior Lighting | B248: LED Lighting LED Channel Sign ≤ 2 feet Interior | C248: Letter | D248: 8
A249: Interior Lighting | B249: LED Lighting LED Channel Sign > 2 feet Interior | C249: Letter | D249: 16
A250: Interior Lighting | B250: High Efficiency HID Fixture Integrated Ballast Ceramic Metal Halide Lamps | C250: Fixture | D250: 8
A251: Interior Lighting | B251: High Efficiency HID Fixture Metal Halide (Pulse Start or Ceramic) 100W or Less | C251: Fixture | D251: 20
A252: Interior Lighting | B252: High Efficiency HID Fixture Metal Halide (Pulse Start or Ceramic) 101W - 200W | C252: Fixture | D252: 25
A253: Interior Lighting | B253: High Efficiency HID Fixture Metal Halide (Pulse Start or Ceramic) 201W - 350W | C253: Fixture | D253: 45
A254: Interior Lighting | B254: High Efficiency HID Fixture Metal Halide (Pulse Start or Ceramic) 351W - 400W | C254: Fixture | D254: 65
A255: Interior Lighting | B255: Specialty Lamps Cold Cathode | C255: Lamp | D255: 3
A256: Interior Lighting | B256: Specialty Lamps Dimmable; 3-way; Locking Base CFL | C256: Lamp | D256: 5
A257: Interior Lighting | B257: Specialty Lamps Dimmable; 3-way; Locking Base CFL (dwelling units) | C257: Lamp | D257: 3
A258: Interior Lighting | B258: Controls Occupancy Sensors | C258: Watts Controlled | D258: 0.06
A259: Interior Lighting | B259: Controls Daylighting Sensor Controls | C259: Watts Controlled | D259: 0.06
A260: Exterior Lighting | B260: Exterior LED Lighting LED Channel Sign ≤ 2 feet Exterior | C260: Letter | D260: 8
A261: Exterior Lighting | B261: Exterior LED Lighting LED Channel Sign > 2 feet Exterior | C261: Letter | D261: 16
A262: Exterior Lighting | B262: Exterior LED Lighting Bi-Level LED Parking Lot Fixture | C262: Fixture | D262: 60
A263: Exterior Lighting | B263: Exterior LED Lighting Bi-Level LED Wall Pack Fixture | C263: Fixture | D263: 60
A264: Exterior Lighting | B264: Exterior Specialty Lamps Cold Cathode | C264: Lamp | D264: 3
A265: Exterior Lighting | B265: Exterior Specialty Lamps CFL - High Wattage (>40W) Screw-In , Dimmable, or 3-way | C265: Lamp | D265: 15
A266: Exterior Lighting | B266: Outdoor Area or Street Lights Metal Halide (Pulse Start or Ceramic) 100W or Less | C266: Fixture | D266: 20
A267: Exterior Lighting | B267: Outdoor Area or Street Lights Metal Halide (Pulse Start or Ceramic) 101W - 200W | C267: Fixture | D267: 25
A268: Exterior Lighting | B268: Outdoor Area or Street Lights Metal Halide (Pulse Start or Ceramic) 201W - 350 | C268: Fixture | D268: 45
A269: Exterior Lighting | B269: Outdoor Area or Street Lights Metal Halide (Pulse Start or Ceramic) 351W - 400W | C269: Fixture | D269: 65
A270: Exterior Lighting | B270: Outdoor Area or Street Lights LED or Induction replacing 175W or Less HID | C270: Fixture | D270: 40
A271: Exterior Lighting | B271: Outdoor Area or Street Lights LED or Induction replacing 176W - 250W HID | C271: Fixture | D271: 50
A272: Exterior Lighting | B272: Outdoor Area or Street Lights LED or Induction replacing 251W - 400W HID | C272: Fixture | D272: 60
A273: Exterior Lighting | B273: Exterior Hardwired Compact Fluorescent Fixtures 29W or Less | C273: Fixture | D273: 20
A274: Exterior Lighting | B274: Exterior Hardwired Compact Fluorescent Fixtures 30W or Greater | C274: Fixture | D274: 40
A275: 24/7 Lighting | B275: 24/7 LED Lighting Bi-Level LED Parking Lot Fixture | C275: Fixture | D275: 60
A276: 24/7 Lighting | B276: 24/7 LED Lighting Bi-Level LED Wall Pack Fixture | C276: Fixture | D276: 60
A277: 24/7 Lighting | B277: 24/7 Specialty Lamps Cold Cathode | C277: Lamp | D277: 3
A278: 24/7 Lighting | B278: 24/7 Specialty Lamps CFL - High Wattage (>40W) Screw-In (Exterior ONLY) | C278: Lamp | D278: 15
A279: 24/7 Lighting | B279: 24/7 Specialty Lamps CFL - Dimmable, or 3-way | C279: Lamp | D279: 15
A280: 24/7 Lighting | B280: 24/7 Outdoor Area or Street Lights Metal Halide (Pulse Start or Ceramic) 100W or Less | C280: Fixture | D280: 20
A281: 24/7 Lighting | B281: 24/7 Outdoor Area or Street Lights Metal Halide (Pulse Start or Ceramic) 101W - 200W | C281: Fixture | D281: 25
A282: 24/7 Lighting | B282: 24/7 Outdoor Area or Street Lights Metal Halide (Pulse Start or Ceramic) 201W - 350 | C282: Fixture | D282: 45
A283: 24/7 Lighting | B283: 24/7 Outdoor Area or Street Lights Metal Halide (Pulse Start or Ceramic) 351W - 400W | C283: Fixture | D283: 65
A284: 24/7 Lighting | B284: 24/7 Outdoor Area or Street Lights LED or Induction replacing 175W or Less HID | C284: Fixture | D284: 40
A285: 24/7 Lighting | B285: 24/7 Outdoor Area or Street Lights LED or Induction replacing 176W - 250W HID | C285: Fixture | D285: 50
A286: 24/7 Lighting | B286: 24/7 Outdoor Area or Street Lights LED or Induction replacing 251W - 400W HID | C286: Lamp | D286: 60
A287: 24/7 Lighting | B287: 24/7 Traffic and Pedestrain Signals LED traffic lights - Green 8" | C287: Lamp | D287: 10
A288: 24/7 Lighting | B288: 24/7 Traffic and Pedestrain Signals LED traffic lights - Green 12" | C288: Lamp | D288: 20
A289: 24/7 Lighting | B289: 24/7 Traffic and Pedestrain Signals LED traffic lights - Red 8" | C289: Lamp | D289: 10
A290: 24/7 Lighting | B290: 24/7 Traffic and Pedestrain Signals LED traffic lights - Red 12" | C290: Lamp | D290: 20
A291: 24/7 Lighting | B291: 24/7 Traffic and Pedestrain Signals LED traffic lights - Walk/Don't Walk or Arrow - 9" | C291: Lamp | D291: 5
A292: 24/7 Lighting | B292: 24/7 Traffic and Pedestrain Signals LED traffic lights - Walk/Don't Walk or Arrow - 12" | C292: Lamp | D292: 5
A293: 24/7 Lighting | B293: 24/7 New T8/T5 Fluorescent Fixtures with Electronic Ballast replacing HID T8/T5 (w/ electronic ballast) | C293: Watt Reduction*** | D293: 0.3
A294: 24/7 Lighting | B294: 24/7 Controls Bi-Level Stairwell/Hall/Garage Fixtures w/ integrated sensors | C294: Fixture | D294: 20
C296: Unit | D296: Incentive
A297: Envelope | B297: Window Film | C297: Sq. Ft. of Glazing | D297: 1.2
C299: Unit | D299: Incentive
A300: Refrigeration | B300: Strip Curtains on Walk-ins and Freezers | C300: Sq. Ft. | D300: 3
A301: Refrigeration | B301: Night Covers for Displays | C301: Lin. Ft. of Case | D301: 5
A302: Refrigeration | B302: EC Motor for Reach-in Refrigerator or Freezer Cases | C302: Motor | D302: 25
A303: Refrigeration | B303: Evaporator Fan Controller - Shade Pole Motor | C303: Motor | D303: 40
A304: Refrigeration | B304: Anti Sweat Heater Controls | C304: Lin. Ft. of Case | D304: 20
A305: Refrigeration | B305: LED Refrigeration Case Lighting | C305: Door | D305: 40
A306: Refrigeration | B306: ENERGY STAR® Solid Door Freezer | C306: Unit | D306: 100
A307: Refrigeration | B307: ENERGY STAR® Glass Door Freezer | C307: Unit | D307: 350
C309: Unit | D309: Incentive
A310: Food Service Equipment | B310: ENERGY STAR® Steam Cookers | C310: Unit | D310: 400
A311: Food Service Equipment | B311: Combination Oven | C311: Unit | D311: 800
A312: Food Service Equipment | B312: ENERGY STAR® Hot Holding Cabinet - 1/2 size | C312: Unit | D312: 200
A313: Food Service Equipment | B313: ENERGY STAR® Hot Holding Cabinet - 3/4 size | C313: Unit | D313: 300
A314: Food Service Equipment | B314: ENERGY STAR® Hot Holding Cabinet - Full size | C314: Unit | D314: 400
A315: Food Service Equipment | B315: ENERGY STAR® Beverage Vending Machine | C315: Unit | D315: 80
A316: Food Service Equipment | B316: ENERGY STAR® Commercial Vat Fryer | C316: Unit | D316: 225
A317: Food Service Equipment | B317: ENERGY STAR® Griddle | C317: Unit | D317: 125
C319: Unit | D319: Incentive
A320: Plug Load Controls | B320: Beverage Vending Machine Control | C320: Unit | D320: Contact for offer
A321: Plug Load Controls | B321: Refrigerated Cooler Control | C321: Unit | D321: Contact for offer
A322: Plug Load Controls | B322: Snack Machine Control | C322: Unit | D322: Contact for offer
A323: Plug Load Controls | B323: Plug Load Occupancy Sensors | C323: Unit | D323: 25
C325: Unit | D325: Incentive
A326: Motors | B326: 1200 RPM - 1 HP - Open | C326: motor | D326: 1
A327: Motors | B327: 1200 RPM - 1 HP - Open | C327: motor | D327: 1.5
A328: Motors | B328: 1200 RPM - 1 HP - Open | C328: motor | D328: 2
A329: Motors | B329: 1200 RPM - 1 HP - Open | C329: motor | D329: 3
A330: Motors | B330: 1200 RPM - 1 HP - Open | C330: motor | D330: 4
A331: Motors | B331: 1200 RPM - 1 HP - Open | C331: motor | D331: 9
A332: Motors | B332: 1200 RPM - 1 HP - Open | C332: motor | D332: 10
A333: Motors | B333: 1200 RPM - 1 HP - Open | C333: motor | D333: 11
A334: Motors | B334: 1200 RPM - 1 HP - Open | C334: motor | D334: 12
A335: Motors | B335: 1200 RPM - 1 HP - Open | C335: motor | D335: 15
A336: Motors | B336: 1200 RPM - 1 HP - Open | C336: motor | D336: 17
A337: Motors | B337: 1200 RPM - 1 HP - Open | C337: motor | D337: 20
A338: Motors | B338: 1200 RPM - 1 HP - Open | C338: motor | D338: 24
A339: Motors | B339: 1200 RPM - 1 HP - Open | C339: motor | D339: 25
A340: Motors | B340: 1200 RPM - 1 HP - Open | C340: motor | D340: 30
A341: Motors | B341: 1200 RPM - 1 HP - Open | C341: motor | D341: 40
A342: Motors | B342: 1200 RPM - 1 HP - Open | C342: motor | D342: 50
A343: Motors | B343: 1200 RPM - 1 HP - Open | C343: motor | D343: 60
A344: Motors | B344: 1200 RPM - 1 HP - Open | C344: motor | D344: 75
A345: Motors | B345: 1200 RPM - 1 HP - Open | C345: motor | D345: 1
A346: Motors | B346: 1200 RPM - 1 HP - Open | C346: motor | D346: 1.5
A347: Motors | B347: 1200 RPM - 1 HP - Open | C347: motor | D347: 2
A348: Motors | B348: 1200 RPM - 1 HP - Open | C348: motor | D348: 3
A349: Motors | B349: 1200 RPM - 1 HP - Open | C349: motor | D349: 4
A350: Motors | B350: 1200 RPM - 1 HP - Open | C350: motor | D350: 9
A351: Motors | B351: 1200 RPM - 1 HP - Open | C351: motor | D351: 10
A352: Motors | B352: 1200 RPM - 1 HP - Open | C352: motor | D352: 11
A353: Motors | B353: 1200 RPM - 1 HP - Open | C353: motor | D353: 12
A354: Motors | B354: 1200 RPM - 1 HP - Open | C354: motor | D354: 15
A355: Motors | B355: 1200 RPM - 1 HP - Open | C355: motor | D355: 17
A356: Motors | B356: 1200 RPM - 1 HP - Open | C356: motor | D356: 20
A357: Motors | B357: 1200 RPM - 1 HP - Open | C357: motor | D357: 24
A358: Motors | B358: 1200 RPM - 1 HP - Open | C358: motor | D358: 25
A359: Motors | B359: 1200 RPM - 1 HP - Open | C359: motor | D359: 30
A360: Motors | B360: 1200 RPM - 1 HP - Open | C360: motor | D360: 40
A361: Motors | B361: 1200 RPM - 1 HP - Open | C361: motor | D361: 50
A362: Motors | B362: 1200 RPM - 1 HP - Open | C362: motor | D362: 60
A363: Motors | B363: 1200 RPM - 1 HP - Open | C363: motor | D363: 75
A364: Motors | B364: 1200 RPM - 1 HP - Open | C364: motor | D364: 1
A365: Motors | B365: 1200 RPM - 1 HP - Open | C365: motor | D365: 1.5
A366: Motors | B366: 1200 RPM - 1 HP - Open | C366: motor | D366: 2
A367: Motors | B367: 1200 RPM - 1 HP - Open | C367: motor | D367: 3
A368: Motors | B368: 1200 RPM - 1 HP - Open | C368: motor | D368: 4
A369: Motors | B369: 1200 RPM - 1 HP - Open | C369: motor | D369: 9
A370: Motors | B370: 1200 RPM - 1 HP - Open | C370: motor | D370: 10
A371: Motors | B371: 1200 RPM - 1 HP - Open | C371: motor | D371: 11
A372: Motors | B372: 1200 RPM - 1 HP - Open | C372: motor | D372: 12
A373: Motors | B373: 1200 RPM - 1 HP - Open | C373: motor | D373: 15
A374: Motors | B374: 1200 RPM - 1 HP - Open | C374: motor | D374: 17
A375: Motors | B375: 1200 RPM - 1 HP - Open | C375: motor | D375: 20
A376: Motors | B376: 1200 RPM - 1 HP - Open | C376: motor | D376: 24
A377: Motors | B377: 1200 RPM - 1 HP - Open | C377: motor | D377: 25
A378: Motors | B378: 1200 RPM - 1 HP - Open | C378: motor | D378: 30
A379: Motors | B379: 1200 RPM - 1 HP - Open | C379: motor | D379: 40
A380: Motors | B380: 1200 RPM - 1 HP - Open | C380: motor | D380: 50
A381: Motors | B381: 1200 RPM - 1 HP - Open | C381: motor | D381: 60
A382: Motors | B382: 1200 RPM - 1 HP - Open | C382: motor | D382: 75
A383: Motors | B383: 1200 RPM - 1 HP - Open | C383: motor | D383: 1
A384: Motors | B384: 1200 RPM - 1 HP - Open | C384: motor | D384: 1.5
A385: Motors | B385: 1200 RPM - 1 HP - Open | C385: motor | D385: 2
A386: Motors | B386: 1200 RPM - 1 HP - Open | C386: motor | D386: 3
A387: Motors | B387: 1200 RPM - 1 HP - Open | C387: motor | D387: 4
A388: Motors | B388: 1200 RPM - 1 HP - Open | C388: motor | D388: 9
A389: Motors | B389: 1200 RPM - 1 HP - Open | C389: motor | D389: 10
A390: Motors | B390: 1200 RPM - 1 HP - Open | C390: motor | D390: 11
A391: Motors | B391: 1200 RPM - 1 HP - Open | C391: motor | D391: 12
A392: Motors | B392: 1200 RPM - 1 HP - Open | C392: motor | D392: 15
A393: Motors | B393: 1200 RPM - 1 HP - Open | C393: motor | D393: 17
A394: Motors | B394: 1200 RPM - 1 HP - Open | C394: motor | D394: 20
A395: Motors | B395: 1200 RPM - 1 HP - Open | C395: motor | D395: 24
A396: Motors | B396: 1200 RPM - 1 HP - Open | C396: motor | D396: 25
... 47 more rows

Sheet Terms & Conditions
A1: TERMS & CONDITIONS

Sheet Indoor Agriculture Rebates
B1: Indoor Agriculture Rebates (Commercial Only) | S1: Qualifies | T1: Evaporative | U1: No Cooling | V1: Fans | Y1: AirCon | AA1: Crop Type | AB1: Baseline Technology Type | AC1: Baseline PPE (umol/J) | AD1: Baseline Fixture Wattage | AE1: Hours of Use | AF1: Coincidence Factor | AG1: EUL, years | AH1: IMC | AI1: Incentive per watt Reduced
A2: Applicant: fill in gray fields | S2: =J11+J12 ->  | T2: Evaporative Cooling does not apply | U2: Only cooled spaces apply | V2: Ventilation fan cooling does not apply | Y2: Yes, DX Cooling | AA2: Flowering Crops (Tomatoes and Peppers) | AB2: HPS | AC2: 1.7 | AD2: 1100 | AE2: 4200 | AF2: 0.68 | AG2: 9.5 | AH2: 430.455 | AI2: 0.6
A3: IMPORTANT NOTICE: Only approved LED lighting is elegible for a rebate; fluorescent and incandescent do not qualify. | Y3: Yes, Evaporative | AA3: Vegetative Growth | AB3: MH | AC3: 1.25 | AD3: 640 | AE3: 6300 | AF3: 0.89 | AG3: 9.5 | AH3: 430.455 | AI3: 0.6
A4: Indoor Agriculture Lighting | Y4: Yes, fans | AA4: Microgreens | AB4: T5 HO | AC4: 1 | AD4: 358 | AE4: 6300 | AF4: 0.68 | AG4: 9.5 | AH4: 430.455 | AI4: 0.6
A5: Commercial LED Grow Lights Retrofit OR New Construction | D5: Proposed PPF (µmol/s) | F5: Proposed Fixture Wattage | H5: Qty | J5: Watts Reduced | K5: Incentive per Watt | L5: Incentive ($0.60/Watt Reduced) | P5: Baseline PPE (µmol/J) | Q5: kWBaseline | R5: kWInstalled | S5: Savings (kW) | T5: hrs | U5: Savings / year (kWh) | V5: Cost Effectiveness | W5: With HVAC savings | AA5: Propagation | AB5: T5 HO | AC5: 1 | AD5: 234 | AE5: 6300 | AF5: 0.89 | AG5: 9.5 | AH5: 430.455 | AI5: 0.6
Y6: No cooling | AA6: Medical Cannabis - Flowering Stage | AB6: HPS | AC6: 1.7 | AD6: 1100 | AE6: 4200 | AF6: 0.68 | AG6: 9.5 | AH6: 430.455 | AI6: 0.6
A7: Flowering Crops (Tomatoes and Peppers) | J7: =IF(AND(D7="",F7="",H7=""),"",IF(Q7<R7,0,(Q7-R7)*1000)) ->  | K7: 0.6 | L7: =IF(J7="","",J7*K7) ->  | P7: 1.7 | Q7: =((D7*H7)/(P7*1000)) -> 0 | R7: =F7*H7/1000 -> 0 | S7: =J7/1000*1.21 ->  | T7: 4200 | U7: =S7*T7 ->  | V7: =L7/U7 ->  | AA7: Medical Cannabis - Vegetative Stage | AB7: MH | AC7: 1.25 | AD7: 640 | AE7: 6300 | AF7: 0.89 | AG7: 9.5 | AH7: 430.455 | AI7: 0.6
A8: Vegetative Growth | J8: =IF(AND(D8="",F8="",H8=""),"",IF(Q8<R8,0,(Q8-R8)*1000)) ->  | K8: 0.6 | L8: =IF(J8="","",J8*K8) ->  | P8: 1.25 | Q8: =((D8*H8)/(P8*1000)) -> 0 | R8: =F8*H8/1000 -> 0 | T8: 6300 | U8: =S8*T8 ->  | V8: =L8/U8 ->  | AA8: Medical Cannabis - Cloning, Seeding and Propagation | AB8: T5 HO | AC8: 1 | AD8: 234 | AE8: 6300 | AF8: 1 | AG8: 9.5 | AH8: 430.455 | AI8: 0.6
A9: Microgreens | K9: 0.6 | P9: 1 | Q9: 0 | R9: 0 | T9: 6300 | U9: =S9*T9 ->  | AA9: Recreational Cannabis - Flowering Stage | AB9: HID/LED/Other | AC9: 2.2 | AD9: 850 | AE9: 4200 | AF9: 0.68 | AG9: 9.5 | AH9: 430.455 | AI9: 0.6
A10: Propagation | K10: 0.6 | P10: 1 | Q10: 0 | R10: 0 | T10: 6300 | AA10: Recreational Cannabis - Vegetative Stage | AB10: HID/LED/Other | AC10: 2.2 | AD10: 640 | AE10: 6300 | AF10: 0.89 | AG10: 9.5 | AH10: 430.455 | AI10: 0.6
A11: Medical Cannabis - Flowering Stage | K11: 0.6 | P11: 1.7 | Q11: 0 | R11: 0 | T11: 4200 | U11: =S11*T11 ->  | AA11: Recreational Cannabis - Cloning, Seeding and Propagation | AB11: T5/LED/Other | AC11: 2.2 | AD11: 234 | AE11: 6300 | AF11: 1 | AG11: 9.5 | AH11: 430.455 | AI11: 0.6
A12: Medical Cannabis - Vegetative Stage | K12: 0.6 | P12: 1.25 | Q12: 0 | R12: 0 | T12: 6300
A13: Medical Cannabis - Cloning, Seeding and Propagation | K13: 0.6 | P13: 1 | Q13: 0 | R13: 0 | T13: 6300
A14: Recreational Cannabis - Flowering Stage | K14: 0.6 | P14: 2.2 | Q14: 0 | R14: 0 | S14: =J14/1000*1.21 ->  | T14: 4200
A15: Recreational Cannabis - Vegetative Stage | K15: 0.6 | P15: 2.2 | Q15: 0 | R15: 0 | T15: 6300
A16: Recreational Cannabis - Cloning, Seeding and Propagation | K16: 0.6 | P16: 2.2 | Q16: 0 | R16: 0 | T16: 6300
A18: Dehumidification for Indoor Agriculture Facilities
A19: Equipment Type | D19: Capacity (Pints / Day) per Unit | G19: # of Units | I19: Incentive per Capacity | K19: Incentive
A20: Indoor Dehumidification Units ≤ 155 Pint / Day Capacity | I20: =P33 -> 2.5 | K20: =IF(Q26="","",IFERROR(D20*P33,"")*G20) ->  | M20: Added
A21: Indoor Dehumidification Units > 155 pints/day capacity | I21: =P34 -> 3.5 | K21: =IF(Q27="","",IFERROR(D21*P34,"")*G21) ->  | M21: Added | P21: 75% duty cycle, 80% load factor, 8760 hrs. Energy Star over Federal Standard. | U21: Unit Incentive $/Watt
T22: 0.3 | U22: 0.7
A23: Total Incentive | L23: =SUM(L7:L16,K20:L21) -> 0 | P23: Capacity | Q23: Savings | R23: Efficacy | T23: 0.45 | U23: 1
A25: Horticultural Specifications | U25: Unit Incentive $/Watt
P26: =D20 -> 0 | Q26: =IF(OR((U55*D20*G20)=0,D20>155),"",U55*G20) ->  | R26: =K20/Q26/G20 ->  | U26: 0.7
P27: =D21 -> 0 | Q27: =IF(OR((V55*D21*G21)=0,D21<156),"",V55*G21) ->  | R27: =K21/Q27/G21 ->  | U27: 1.3
P30: Incentive per Capacity
P31: 2
P32: 2.5
P33: 2.5
P34: 3.5 | Q34: 3.5
U38: ≤155 Pints/Day | V38: >155 Pints/Day
R39: Capacity (Pints/Day) | S39: =#REF! ->  | T39: =#REF! ->  | U39: =D20 -> 0 | V39: =D21 -> 0
R40: Capacity (Liters/Hr) | S40: =S39*0.0197157 ->  | T40: =T39*0.0197157 ->  | U40: 0 | V40: =V39*0.0197 -> 0
R41: Annual Hours | S41: 8760 | T41: 8760 | U41: 8760 | V41: 8760
R42: Duty Cycle | S42: 0.7 | T42: 0.7 | U42: 0.75 | V42: 0.75
R43: Load Factor | S43: 0.8 | T43: 0.8 | U43: 0.8 | V43: 0.8
S44: Proposed
R45: Integrated Energy Factor (L/kWh) Under | S45: 1.57 | T45: 1.8 | U45: 3.3 | V45: 2.8
R46: Annual kWh | S46: =((S40/S45)*S41*S42*S43)*(1+(0.95/3.517)) ->  | T46: =((T40/T45)*T41*T42*T43)*(1+(0.95/3.517)) ->  | U46: =((U40/U45)*U41*U42*U43) -> 0 | V46: =((V40/V45)*V41*V42*V43) -> 0
R47: Actual kW | S47: =((S40/S45)*S42)*(1+(0.95/3.517)) ->  | T47: =((T40/T45)*T42)*(1+(0.95/3.517)) ->  | U47: =((U40/U45)*U42) -> 0 | V47: =((V40/V45)*V42) -> 0
R48: Peak kW | S48: =((S40/S45)*S42*0.9)*(1+(0.95/3.517)) ->  | T48: =((T40/T45)*T42*0.9)*(1+(0.95/3.517)) ->  | U48: =((U40/U45)*U42*0.9) -> 0 | V48: =((V40/V45)*V42*0.9) -> 0
S49: Baseline
R50: Integrated Energy Factor (L/kWh) Over | S50: 1.3 | T50: 1.6 | U50: 2.8 | V50: 1.9
R51: Annual kWh | S51: =((S40/S50)*S41*S42*S43)*(1+(0.95/3.517)) ->  | T51: =((T40/T50)*T41*T42*T43)*(1+(0.95/3.517)) ->  | U51: =((U40/U50)*U41*U42*U43) -> 0 | V51: =((V40/V50)*V41*V42*V43) -> 0
R52: Actual kW | S52: =((S40/S50)*S42)*(1+(0.95/3.517)) ->  | T52: =((T40/T50)*T42)*(1+(0.95/3.517)) ->  | U52: =((U40/U50)*U42) -> 0 | V52: =((V40/V50)*V42) -> 0
R53: Peak kW | S53: =((S40/S50)*S42*0.9)*(1+(0.95/3.517)) ->  | T53: =((T40/T50)*T42*0.9)*(1+(0.95/3.517)) ->  | U53: =((U40/U50)*U42*0.9) -> 0 | V53: =((V40/V50)*V42*0.9) -> 0
S54: Savings
R55: Annual kWh | S55: =-S46+S51 ->  | U55: =(-U46+U51)*(1+(0.95/3.517)) -> 0 | V55: 0
R56: Actual kW | U56: 0 | V56: 0
R57: Peak kW | U57: 0 | V57: 0

Sheet HVAC
B1: HVAC INCENTIVES | G1: See specs at the bottom of the page! | L1: USE THIS SECTION TO REPLACE THE TABLE IN THE SPECS WORKSHEET
A2: Applicant: fill in gray fields at bottom | B2: See instructions to complete this worksheet at the bottom of the page
A3: Equipment Type | D3: Size Category | G3: Qualifying Efficiency* | H3: Incentive (per ton) | I3: Efficiency Bonus | J3: New Qualifying Efficiency* | L3: Equipment Type | M3: Size Category | P3: Qualifying Efficiency* | Q3: Incentive (per ton) | R3: Efficiency Bonus
A4: Unitary and Split Air Conditioning Systems | D4: < 65,000 Btu/h (5.4 tons) | G4: 15.0 SEER | H4: 25 | I4: 15 | J4: 15.0 SEER | L4: Unitary and Split Air Conditioning Systems | M4: < 65,000 Btu/h (5.4 tons) | P4: =J4 -> 15.0 SEER | Q4: 25 | R4: 15
D5: ≥ 65,000 Btu/h and < 135,000 Btu/h (5.4-11.25 tons) | G5: 13.7 IEER** | J5: 11.8 EER** | M5: ≥ 65,000 Btu/h and < 135,000 Btu/h (5.4-11.25 tons) | P5: 11.8 EER**
D7: ≥ 135,000 Btu/h and < 240,000 Btu/h (11.25-20 tons) | G7: 13.3 IEER** | J7: 11.6 EER** | M7: ≥ 135,000 Btu/h and < 240,000 Btu/h (11.25-20 tons) | P7: 11.6 EER**
D9: ≥ 240,000 Btu/h and < 760,000 Btu/h (20-63 Tons) | G9: 12.4 IEER** | J9: 10.5 EER** | M9: ≥ 240,000 Btu/h and < 760,000 Btu/h (20-63 Tons) | P9: 10.5 EER**
D11: ≥ 760,000 Btu/h (> 63 tons) | G11: 12.0 IEER** | J11: 10.2 EER** | M11: ≥ 760,000 Btu/h (> 63 tons) | P11: 10.2 EER**
A13: Air Source Heat Pumps | D13: < 65,000 Btu/h (5.4 tons) | G13: 15 SEER and 8.6 HSPF | H13: 40 | I13: 15 | J13: 15 SEER and 8.6 HSPF | L13: Air Source Heat Pumps | M13: < 65,000 Btu/h (5.4 tons) | P13: 15 SEER and 8.6 HSPF | Q13: 40 | R13: 15
D14: ≥ 65,000 Btu/h and < 135,000 Btu/h (5.4-11.25 tons) | G14: 12.9 IEER** and 3.5 COP | J14: 11.6 EER** and 3.5 COP | M14: ≥ 65,000 Btu/h and < 135,000 Btu/h (5.4-11.25 tons) | P14: 11.6 EER** and 3.5 COP
D16: ≥ 135,000 Btu/h and < 240,000 Btu/h (11.25-20 tons) | G16: 12.4 IEER** and 3.4 COP | J16: 11.1 EER** and 3.4 COP | M16: ≥ 135,000 Btu/h and < 240,000 Btu/h (11.25-20 tons) | P16: 11.1 EER** and 3.4 COP
D18: ≥ 240,000 Btu/h and < 760,000 Btu/h (20-63 Tons) | G18: 11.4 IEER** and 3.4 COP | J18: 10.0 EER** and 3.4 COP | M18: ≥ 240,000 Btu/h and < 760,000 Btu/h (20-63 Tons) | P18: 10.0 EER** and 3.4 COP
A20: Chillers: Water-Cooled, Centrifugal*** | D20: ≤ 150 tons | G20: 0.495 kW/ton-IPLV | H20: 20 | I20: 20 | J20: 0.495 kW/ton-IPLV | L20: Chillers: Water-Cooled, Centrifugal | M20: ≤ 150 tons | P20: 0.495 kW/ton-IPLV | Q20: 20 | R20: 20
D21: >150 tons and ≤ 300 tons | G21: 0.495 kW/ton-IPLV | J21: 0.495 kW/ton-IPLV | M21: >150 tons and ≤ 300 tons | P21: 0.495 kW/ton-IPLV
D22: > 300 tons to ≤ 400 tons | G22: 0.468 kW/ton-IPLV | J22: 0.468 kW/ton-IPLV | M22: > 300 tons to ≤ 400 tons | P22: 0.468 kW/ton-IPLV
D23: > 400 tons to ≤ 600 tons | G23: 0.450 kW/ton-IPLV | J23: 0.450 kW/ton-IPLV | M23: > 400 tons to ≤ 600 tons | P23: 0.450 kW/ton-IPLV
D24: > 600 | G24: 0.450 kW/ton-IPLV | J24: 0.450 kW/ton-IPLV | M24: > 600 | P24: 0.450 kW/ton-IPLV
A25: Chillers: Water Cooled Scroll, Helical-Rotary or Reciprocating*** | D25: ≤ 75 tons | G25: 0.54 kW/ton-IPLV | J25: 0.54 kW/ton-IPLV | L25: Chillers: Water Cooled Scroll, Helical-Rotary or Reciprocating*** | M25: ≤ 75 tons | P25: 0.54 kW/ton-IPLV
D26: > 75 tons and ≤ 150 tons | G26: 0.504 kW/ton-IPLV | J26: 0.504 kW/ton-IPLV | M26: > 75 tons and ≤ 150 tons | P26: 0.504 kW/ton-IPLV
D27: >150 tons and ≤ 300 tons | G27: 0.486 kW/ton-IPLV | J27: 0.486 kW/ton-IPLV | M27: >150 tons and ≤ 300 tons | P27: 0.486 kW/ton-IPLV
D28: > 300 tons and ≤ 600 tons | G28: 0.468 kW/ton-IPLV | J28: 0.468 kW/ton-IPLV | M28: > 300 tons and ≤ 600 tons | P28: 0.468 kW/ton-IPLV
D29: > 600 tons | G29: 0.540 kW/ton-IPLV | J29: 0.540 kW/ton-IPLV | M29: > 600 tons | P29: 0.540 kW/ton-IPLV
A30: Chillers: Air-Cooled | D30: ≤ 150 | G30: 0.788 kW/ton-IPLV | H30: 40 | I30: 20 | J30: 0.788 kW/ton-IPLV | L30: Chillers: Air-Cooled | M30: ≤ 150 | P30: 0.788 kW/ton-IPLV
D31: > 150 | G31: 0.771 kW/ton-IPLV | J31: 0.771 kW/ton-IPLV | M31: > 150 | P31: 0.771 kW/ton-IPLV | Q31: 40 | R31: 20
A32: Packaged Terminal AC | D32: ALL | G32: 14.5-(0.300 x Btu/h/1000) EER | H32: 50 | I32: 0 | J32: 14.5-(0.300 x Btu/h/1000) EER | L32: Packaged Terminal AC | M32: ALL | P32: 14.5-(0.300 x Btu/h/1000) EER | Q32: 50 | R32: 0
A33: Packaged Terminal HP | D33: ALL | G33: 14.5-(0.300 x Btu/h/1000) EER | H33: 100 | J33: 14.5-(0.300 x Btu/h/1000) EER | L33: Packaged Terminal HP | M33: ALL | P33: 14.5-(0.300 x Btu/h/1000) EER | Q33: 100
A34: Variable Refrigerant Flow HP | D34: < 65,000 Btu/h (5.4 tons) | G34: 13.9 SEER and 8.3 HSPF | H34: 40 | I34: 20 | J34: 13.9 SEER and 8.3 HSPF | L34: Variable Refrigerant Flow HP | M34: < 65,000 Btu/h (5.4 tons) | P34: 13.9 SEER and 8.3 HSPF | Q34: 40 | R34: 20
D35: ≥ 65,000 Btu/h and < 135,000 Btu/h (5.4-11.25 tons) | G35: 15.4 IEER and 3.5 COP | H35: 40 | I35: 25 | J35: 15.4 IEER and 3.5 COP | M35: ≥ 65,000 Btu/h and < 135,000 Btu/h (5.4-11.25 tons) | P35: 15.4 IEER and 3.5 COP | Q35: 40 | R35: 25
D36: ≥ 135,000 Btu/h and < 240,000 Btu/h (11.25-20 tons) | G36: 14.7 IEER and 3.4 COP | J36: 14.7 IEER and 3.4 COP | M36: ≥ 135,000 Btu/h and < 240,000 Btu/h (11.25-20 tons) | P36: 14.7 IEER and 3.4 COP
D37: ≥ 240,000 Btu/h (20 Tons) | G37: 13.4 IEER and 3.4 COP | J37: 13.4 IEER and 3.4 COP | M37: ≥ 240,000 Btu/h (20 Tons) | P37: 13.4 IEER and 3.4 COP
A38: Equipment Model | B38: Tons | C38: Efficiency Rating | D38: Quantity | E38: Equipment Type | G38: Size Category | I38: Incentive
I39: =IF(E39="","",IF(LEFT(E39,1)<>"C",B39*D39*IF(VLOOKUP(CONCATENATE(E39,G39),$V$111:$Y$141,2,FALSE)>C39,0,VLOOKUP(CONCATENATE(E39,G39),$V$111:$Y$141,3,FALSE)+(C39-(VLOOKUP(CONCATENATE(E39,G39),$V$111:$Y$141,2,FALSE)))*(VLOOKUP(CONCATENATE(E39,G39),$V$111:$Y$141,4,FALSE))),B39*D39*IF(VLOOKUP(CONCATENATE(E39,G39),$V$111:$Y$141,2,FALSE)<C39,0,VLOOKUP(CONCATENATE(E39,G39),$V$111:$Y$141,3,FALSE)+((VLOOKUP(CONCATENATE(E39,G39),$V$111:$Y$141,2,FALSE))-C39)*(VLOOKUP(CONCATENATE(E39,G39),$V$111:$Y$141,4,FALSE))/0.1))) -> 
I40: =IF(E40="","",IF(LEFT(E40,1)<>"C",B40*D40*IF(VLOOKUP(CONCATENATE(E40,G40),$V$111:$Y$141,2,FALSE)>C40,0,VLOOKUP(CONCATENATE(E40,G40),$V$111:$Y$141,3,FALSE)+(C40-(VLOOKUP(CONCATENATE(E40,G40),$V$111:$Y$141,2,FALSE)))*(VLOOKUP(CONCATENATE(E40,G40),$V$111:$Y$141,4,FALSE))),B40*D40*IF(VLOOKUP(CONCATENATE(E40,G40),$V$111:$Y$141,2,FALSE)<C40,0,VLOOKUP(CONCATENATE(E40,G40),$V$111:$Y$141,3,FALSE)+((VLOOKUP(CONCATENATE(E40,G40),$V$111:$Y$141,2,FALSE))-C40)*(VLOOKUP(CONCATENATE(E40,G40),$V$111:$Y$141,4,FALSE))/0.1))) -> 
I41: =IF(E41="","",IF(LEFT(E41,1)<>"C",B41*D41*IF(VLOOKUP(CONCATENATE(E41,G41),$V$111:$Y$141,2,FALSE)>C41,0,VLOOKUP(CONCATENATE(E41,G41),$V$111:$Y$141,3,FALSE)+(C41-(VLOOKUP(CONCATENATE(E41,G41),$V$111:$Y$141,2,FALSE)))*(VLOOKUP(CONCATENATE(E41,G41),$V$111:$Y$141,4,FALSE))),B41*D41*IF(VLOOKUP(CONCATENATE(E41,G41),$V$111:$Y$141,2,FALSE)<C41,0,VLOOKUP(CONCATENATE(E41,G41),$V$111:$Y$141,3,FALSE)+((VLOOKUP(CONCATENATE(E41,G41),$V$111:$Y$141,2,FALSE))-C41)*(VLOOKUP(CONCATENATE(E41,G41),$V$111:$Y$141,4,FALSE))/0.1))) -> 
I42: =IF(E42="","",IF(LEFT(E42,1)<>"C",B42*D42*IF(VLOOKUP(CONCATENATE(E42,G42),$V$111:$Y$141,2,FALSE)>C42,0,VLOOKUP(CONCATENATE(E42,G42),$V$111:$Y$141,3,FALSE)+(C42-(VLOOKUP(CONCATENATE(E42,G42),$V$111:$Y$141,2,FALSE)))*(VLOOKUP(CONCATENATE(E42,G42),$V$111:$Y$141,4,FALSE))),B42*D42*IF(VLOOKUP(CONCATENATE(E42,G42),$V$111:$Y$141,2,FALSE)<C42,0,VLOOKUP(CONCATENATE(E42,G42),$V$111:$Y$141,3,FALSE)+((VLOOKUP(CONCATENATE(E42,G42),$V$111:$Y$141,2,FALSE))-C42)*(VLOOKUP(CONCATENATE(E42,G42),$V$111:$Y$141,4,FALSE))/0.1))) -> 
I43: =IF(E43="","",IF(LEFT(E43,1)<>"C",B43*D43*IF(VLOOKUP(CONCATENATE(E43,G43),$V$111:$Y$141,2,FALSE)>C43,0,VLOOKUP(CONCATENATE(E43,G43),$V$111:$Y$141,3,FALSE)+(C43-(VLOOKUP(CONCATENATE(E43,G43),$V$111:$Y$141,2,FALSE)))*(VLOOKUP(CONCATENATE(E43,G43),$V$111:$Y$141,4,FALSE))),B43*D43*IF(VLOOKUP(CONCATENATE(E43,G43),$V$111:$Y$141,2,FALSE)<C43,0,VLOOKUP(CONCATENATE(E43,G43),$V$111:$Y$141,3,FALSE)+((VLOOKUP(CONCATENATE(E43,G43),$V$111:$Y$141,2,FALSE))-C43)*(VLOOKUP(CONCATENATE(E43,G43),$V$111:$Y$141,4,FALSE))/0.1))) -> 
I44: =IF(E44="","",IF(LEFT(E44,1)<>"C",B44*D44*IF(VLOOKUP(CONCATENATE(E44,G44),$V$111:$Y$141,2,FALSE)>C44,0,VLOOKUP(CONCATENATE(E44,G44),$V$111:$Y$141,3,FALSE)+(C44-(VLOOKUP(CONCATENATE(E44,G44),$V$111:$Y$141,2,FALSE)))*(VLOOKUP(CONCATENATE(E44,G44),$V$111:$Y$141,4,FALSE))),B44*D44*IF(VLOOKUP(CONCATENATE(E44,G44),$V$111:$Y$141,2,FALSE)<C44,0,VLOOKUP(CONCATENATE(E44,G44),$V$111:$Y$141,3,FALSE)+((VLOOKUP(CONCATENATE(E44,G44),$V$111:$Y$141,2,FALSE))-C44)*(VLOOKUP(CONCATENATE(E44,G44),$V$111:$Y$141,4,FALSE))/0.1))) -> 
I45: =IF(E45="","",IF(LEFT(E45,1)<>"C",B45*D45*IF(VLOOKUP(CONCATENATE(E45,G45),$V$111:$Y$141,2,FALSE)>C45,0,VLOOKUP(CONCATENATE(E45,G45),$V$111:$Y$141,3,FALSE)+(C45-(VLOOKUP(CONCATENATE(E45,G45),$V$111:$Y$141,2,FALSE)))*(VLOOKUP(CONCATENATE(E45,G45),$V$111:$Y$141,4,FALSE))),B45*D45*IF(VLOOKUP(CONCATENATE(E45,G45),$V$111:$Y$141,2,FALSE)<C45,0,VLOOKUP(CONCATENATE(E45,G45),$V$111:$Y$141,3,FALSE)+((VLOOKUP(CONCATENATE(E45,G45),$V$111:$Y$141,2,FALSE))-C45)*(VLOOKUP(CONCATENATE(E45,G45),$V$111:$Y$141,4,FALSE))/0.1))) -> 
I46: =IF(E46="","",IF(LEFT(E46,1)<>"C",B46*D46*IF(VLOOKUP(CONCATENATE(E46,G46),$V$111:$Y$141,2,FALSE)>C46,0,VLOOKUP(CONCATENATE(E46,G46),$V$111:$Y$141,3,FALSE)+(C46-(VLOOKUP(CONCATENATE(E46,G46),$V$111:$Y$141,2,FALSE)))*(VLOOKUP(CONCATENATE(E46,G46),$V$111:$Y$141,4,FALSE))),B46*D46*IF(VLOOKUP(CONCATENATE(E46,G46),$V$111:$Y$141,2,FALSE)<C46,0,VLOOKUP(CONCATENATE(E46,G46),$V$111:$Y$141,3,FALSE)+((VLOOKUP(CONCATENATE(E46,G46),$V$111:$Y$141,2,FALSE))-C46)*(VLOOKUP(CONCATENATE(E46,G46),$V$111:$Y$141,4,FALSE))/0.1))) -> 
I47: =IF(E47="","",IF(LEFT(E47,1)<>"C",B47*D47*IF(VLOOKUP(CONCATENATE(E47,G47),$V$111:$Y$141,2,FALSE)>C47,0,VLOOKUP(CONCATENATE(E47,G47),$V$111:$Y$141,3,FALSE)+(C47-(VLOOKUP(CONCATENATE(E47,G47),$V$111:$Y$141,2,FALSE)))*(VLOOKUP(CONCATENATE(E47,G47),$V$111:$Y$141,4,FALSE))),B47*D47*IF(VLOOKUP(CONCATENATE(E47,G47),$V$111:$Y$141,2,FALSE)<C47,0,VLOOKUP(CONCATENATE(E47,G47),$V$111:$Y$141,3,FALSE)+((VLOOKUP(CONCATENATE(E47,G47),$V$111:$Y$141,2,FALSE))-C47)*(VLOOKUP(CONCATENATE(E47,G47),$V$111:$Y$141,4,FALSE))/0.1))) -> 
I48: =IF(E48="","",IF(LEFT(E48,1)<>"C",B48*D48*IF(VLOOKUP(CONCATENATE(E48,G48),$V$111:$Y$141,2,FALSE)>C48,0,VLOOKUP(CONCATENATE(E48,G48),$V$111:$Y$141,3,FALSE)+(C48-(VLOOKUP(CONCATENATE(E48,G48),$V$111:$Y$141,2,FALSE)))*(VLOOKUP(CONCATENATE(E48,G48),$V$111:$Y$141,4,FALSE))),B48*D48*IF(VLOOKUP(CONCATENATE(E48,G48),$V$111:$Y$141,2,FALSE)<C48,0,VLOOKUP(CONCATENATE(E48,G48),$V$111:$Y$141,3,FALSE)+((VLOOKUP(CONCATENATE(E48,G48),$V$111:$Y$141,2,FALSE))-C48)*(VLOOKUP(CONCATENATE(E48,G48),$V$111:$Y$141,4,FALSE))/0.1))) -> 
I49: =IF(E49="","",IF(LEFT(E49,1)<>"C",B49*D49*IF(VLOOKUP(CONCATENATE(E49,G49),$V$111:$Y$141,2,FALSE)>C49,0,VLOOKUP(CONCATENATE(E49,G49),$V$111:$Y$141,3,FALSE)+(C49-(VLOOKUP(CONCATENATE(E49,G49),$V$111:$Y$141,2,FALSE)))*(VLOOKUP(CONCATENATE(E49,G49),$V$111:$Y$141,4,FALSE))),B49*D49*IF(VLOOKUP(CONCATENATE(E49,G49),$V$111:$Y$141,2,FALSE)<C49,0,VLOOKUP(CONCATENATE(E49,G49),$V$111:$Y$141,3,FALSE)+((VLOOKUP(CONCATENATE(E49,G49),$V$111:$Y$141,2,FALSE))-C49)*(VLOOKUP(CONCATENATE(E49,G49),$V$111:$Y$141,4,FALSE))/0.1))) -> 
I50: =IF(E50="","",IF(LEFT(E50,1)<>"C",B50*D50*IF(VLOOKUP(CONCATENATE(E50,G50),$V$111:$Y$141,2,FALSE)>C50,0,VLOOKUP(CONCATENATE(E50,G50),$V$111:$Y$141,3,FALSE)+(C50-(VLOOKUP(CONCATENATE(E50,G50),$V$111:$Y$141,2,FALSE)))*(VLOOKUP(CONCATENATE(E50,G50),$V$111:$Y$141,4,FALSE))),B50*D50*IF(VLOOKUP(CONCATENATE(E50,G50),$V$111:$Y$141,2,FALSE)<C50,0,VLOOKUP(CONCATENATE(E50,G50),$V$111:$Y$141,3,FALSE)+((VLOOKUP(CONCATENATE(E50,G50),$V$111:$Y$141,2,FALSE))-C50)*(VLOOKUP(CONCATENATE(E50,G50),$V$111:$Y$141,4,FALSE))/0.1))) -> 
I51: =IF(E51="","",IF(LEFT(E51,1)<>"C",B51*D51*IF(VLOOKUP(CONCATENATE(E51,G51),$V$111:$Y$141,2,FALSE)>C51,0,VLOOKUP(CONCATENATE(E51,G51),$V$111:$Y$141,3,FALSE)+(C51-(VLOOKUP(CONCATENATE(E51,G51),$V$111:$Y$141,2,FALSE)))*(VLOOKUP(CONCATENATE(E51,G51),$V$111:$Y$141,4,FALSE))),B51*D51*IF(VLOOKUP(CONCATENATE(E51,G51),$V$111:$Y$141,2,FALSE)<C51,0,VLOOKUP(CONCATENATE(E51,G51),$V$111:$Y$141,3,FALSE)+((VLOOKUP(CONCATENATE(E51,G51),$V$111:$Y$141,2,FALSE))-C51)*(VLOOKUP(CONCATENATE(E51,G51),$V$111:$Y$141,4,FALSE))/0.1))) -> 
I52: =IF(E52="","",IF(LEFT(E52,1)<>"C",B52*D52*IF(VLOOKUP(CONCATENATE(E52,G52),$V$111:$Y$141,2,FALSE)>C52,0,VLOOKUP(CONCATENATE(E52,G52),$V$111:$Y$141,3,FALSE)+(C52-(VLOOKUP(CONCATENATE(E52,G52),$V$111:$Y$141,2,FALSE)))*(VLOOKUP(CONCATENATE(E52,G52),$V$111:$Y$141,4,FALSE))),B52*D52*IF(VLOOKUP(CONCATENATE(E52,G52),$V$111:$Y$141,2,FALSE)<C52,0,VLOOKUP(CONCATENATE(E52,G52),$V$111:$Y$141,3,FALSE)+((VLOOKUP(CONCATENATE(E52,G52),$V$111:$Y$141,2,FALSE))-C52)*(VLOOKUP(CONCATENATE(E52,G52),$V$111:$Y$141,4,FALSE))/0.1))) -> 
A53: Total HVAC Incentives | I53: =SUM(I39:I52) -> 0
A55: Total All HVAC Form Incentives | H55: =SUM(I53) -> 0
A56: * Use SEER for Unitary and Split Units less than 5.4 tons and IEER for units larger than 5.4 tons; values available from CEE 2012 Tier 2; Use IEER for VRF Units; IPLV values based on ASHRAE 90.1 2016; see specifications page for complete list. Attach AHRI Rating Sheet. ** Units with electric resistance heating must have EER values 0.2 higher than the efficiencies listed. *** Unit efficiency for chillers should be provided in kW per ton – IPLV where IPLV = Integrated Part Load Value; values based on ASHRAE 90.1 2016. Attach manufacturer's rating sheet for credit.
A61: INSTRUCTIONS TO COMPLETE THIS WORKSHEET:
A62: Equipment Model: | B62: Enter the equipment model as shown on the invoice; provide the specification sheet(s) that accompany the model
A63: Tons: | B63: Enter the equipment tonnage from the AHRI or manufacturer specification sheet
A64: Efficiency Rating: | B64: Enter the equipment efficiency rating from the AHRI or manufacturer specification sheet; for chillers, kW/ton = 12/IPLV EER
A65: Quantity: | B65: Enter the number of units that fit this size and efficiency rating
A66: Equipment Type: | B66: Enter the equipment type from the drop-down menu
A67: Size Category: | B67: Enter the equipment size from the drop-down menu
A70: HVAC Specifications | B70: Note: The reference standard in IECC 2018 is ASHRAE 90.1 2016
K84: Unitary and Split Air Conditioning Systems
K85: Air Source Heat Pumps
K86: Chillers: Water-Cooled: Centrifugal
K87: Chillers: Water-Cooled: Scroll, Screw or Reciprocating
K88: Chillers: Air-Cooled
K89: Packaged Terminal AC
K90: Packaged Terminal HP
K91: Variable Refrigerant Flow HP
K94: < 65,000 Btu/h (5.4 tons)
K95: ≥ 65,000 Btu/h and < 135,000 Btu/h (5.4-11.25 tons)
K96: ≥ 135,000 Btu/h and < 240,000 Btu/h (11.25-20 tons)
K97: ≥ 240,000 Btu/h and < 760,000 Btu/h (20-63 Tons)
K98: ≥ 760,000 Btu/h (> 63 tons)
K99: ≤ 75 tons
K100: ≤ 150 tons
K101: > 150 tons
K102: >150 tons and ≤ 300 tons
K103: >300 tons and ≤ 400 tons
K104: > 400 tons and ≤ 600 tons
K105: >600
K106: ALL
S111: Level Normal (2021 V2) | T111: 2021 V2 Rounded | U111: Level Normal (2021 V1) | W111: Level Normal | X111: Incentive | Y111: Bonus | Z111: Level 2 | AA111: Level 3 | AB111: Level 4 | AC111: Min | AD111: Max
S113: 15.00002 | T113: =ROUND(S113,1) -> 15 | U113: 14 | V113: Unitary and Split Air Conditioning Systems< 65,000 Btu/h (5.4 tons) | W113: =T113 -> 15 | X113: 25 | Y113: 15 | Z113: =W113+1 -> 16 | AA113: =Z113+1 -> 17 | AB113: =AA113+1 -> 18 | AC113: 0 | AD113: 5.4
S114: 13.714304 | T114: =ROUND(S114,1) -> 13.7 | U114: 12 | V114: Unitary and Split Air Conditioning Systems≥ 65,000 Btu/h and < 135,000 Btu/h (5.4-11.25 tons) | W114: =T114 -> 13.7 | X114: 25 | Y114: 15 | Z114: =W114+1 -> 14.7 | AA114: =Z114+1 -> 15.7 | AB114: =AA114+1 -> 16.7
S115: 13.285732 | T115: =ROUND(S115,1) -> 13.3 | U115: 12 | V115: Unitary and Split Air Conditioning Systems≥ 135,000 Btu/h and < 240,000 Btu/h (11.25-20 tons) | W115: =T115 -> 13.3 | X115: 25 | Y115: 15 | Z115: =W115+1 -> 14.3 | AA115: =Z115+1 -> 15.3 | AB115: =AA115+1 -> 16.3 | AC115: 11.25 | AD115: 20
S116: 12.428588 | T116: =ROUND(S116,1) -> 12.4 | U116: 10.8 | V116: Unitary and Split Air Conditioning Systems≥ 240,000 Btu/h and < 760,000 Btu/h (20-63 Tons) | W116: =T116 -> 12.4 | X116: 25 | Y116: 15 | Z116: =W113+1 -> 16 | AA116: =Z113+1 -> 17 | AB116: =AA113+1 -> 18 | AC116: 20 | AD116: 63
S117: 12.000016 | T117: =ROUND(S117,1) -> 12 | U117: 10.2 | V117: Unitary and Split Air Conditioning Systems≥ 760,000 Btu/h (> 63 tons) | W117: =T117 -> 12 | X117: 25 | Y117: 15 | Z117: =W117+1 -> 13 | AA117: =Z117+1 -> 14 | AB117: =AA117+1 -> 15 | AC117: 63 | AD117: 100000
S118: 15.00002 | T118: =ROUND(S118,1) -> 15 | U118: 14 | V118: Air Source Heat Pumps< 65,000 Btu/h (5.4 tons) | W118: =T118 -> 15 | X118: 40 | Y118: 15 | Z118: =W118+1 -> 16 | AA118: =Z118+1 -> 17 | AB118: =AA118+1 -> 18 | AC118: 0 | AD118: 5.4
S119: 12.85716 | T119: =ROUND(S119,1) -> 12.9 | U119: 11.6 | V119: Air Source Heat Pumps≥ 65,000 Btu/h and < 135,000 Btu/h (5.4-11.25 tons) | W119: =T119 -> 12.9 | X119: 40 | Y119: 15 | Z119: =W119+1 -> 13.9 | AA119: =Z119+1 -> 14.9 | AB119: =AA119+1 -> 15.9 | AC119: 5.4 | AD119: 11.25
S120: 12.428588 | T120: =ROUND(S120,1) -> 12.4 | U120: 11.2 | V120: Air Source Heat Pumps≥ 135,000 Btu/h and < 240,000 Btu/h (11.25-20 tons) | W120: =T120 -> 12.4 | X120: 40 | Y120: 15 | Z120: =W120+1 -> 13.4 | AA120: =Z120+1 -> 14.4 | AB120: =AA120+1 -> 15.4 | AC120: 11.25 | AD120: 20
S121: 11.357158 | T121: =ROUND(S121,1) -> 11.4 | U121: 10 | V121: Air Source Heat Pumps≥ 240,000 Btu/h and < 760,000 Btu/h (20-63 Tons) | W121: =T121 -> 11.4 | X121: 40 | Y121: 15 | Z121: =W118+1 -> 16 | AA121: =Z118+1 -> 17 | AB121: =AA118+1 -> 18 | AC121: 20 | AD121: 63
S122: 9.964299 | T122: =ROUND(S122,1) -> 10 | U122: 10 | V122: Air Source Heat Pumps≥ 760,000 Btu/h (> 63 tons) | W122: =T122 -> 10 | X122: 40 | Y122: 15 | Z122: =W122+1 -> 11 | AA122: =Z122+1 -> 12 | AB122: =AA122+1 -> 13 | AC122: 63 | AD122: 100000
S123: 0.495 | T123: =S123 -> 0.495 | U123: 0.569 | V123: Chillers: Water-Cooled, Centrifugal***≤ 150 tons | W123: =T123 -> 0.495 | X123: 20 | Y123: 20 | Z123: 0.54 | AA123: =ROUNDUP(W123/0.9*0.7,2) -> 0.39 | AB123: =ROUNDUP(W123/0.9*0.6,2) -> 0.33 | AC123: 0 | AD123: 150
S124: 0.495 | T124: =S124 -> 0.495 | U124: 0.507 | V124: Chillers: Water-Cooled, Centrifugal***>150 tons and ≤ 300 tons | W124: =T124 -> 0.495 | X124: 20 | Y124: 20 | Z124: 0.54 | AA124: =ROUNDUP(W124/0.9*0.7,2) -> 0.39 | AB124: =ROUNDUP(W124/0.9*0.6,2) -> 0.33 | AC124: 150 | AD124: 300
S125: 0.468 | T125: =S125 -> 0.468 | U125: 0.467 | V125: Chillers: Water-Cooled, Centrifugal***> 300 tons to ≤ 400 tons | W125: =T125 -> 0.468 | X125: 20 | Y125: 20 | Z125: 0.48 | AA125: =ROUNDUP(W125/0.9*0.7,2) -> 0.37 | AB125: =ROUNDUP(W125/0.9*0.6,2) -> 0.32 | AC125: 300 | AD125: 400
S126: 0.45 | T126: =S126 -> 0.45 | U126: New Size category | V126: Chillers: Water-Cooled, Centrifugal***> 400 tons to ≤ 600 tons | W126: =T126 -> 0.45 | X126: 20 | Y126: 20 | Z126: 0.44 | AA126: =ROUNDUP(W126/0.9*0.7,2) -> 0.35 | AB126: =ROUNDUP(W126/0.9*0.6,2) -> 0.3 | AC126: 400 | AD126: 600
S127: 0.45 | T127: =S127 -> 0.45 | U127: New Size Category | V127: Chillers: Water-Cooled, Centrifugal***> 600 | W127: =T127 -> 0.45 | X127: 20 | Y127: 20 | Z127: 0.42 | AA127: =ROUNDUP(W127/0.9*0.7,2) -> 0.35 | AB127: =ROUNDUP(W127/0.9*0.6,2) -> 0.3 | AC127: 600 | AD127: 10000
S128: 0.54 | T128: =S128 -> 0.54 | U128: 0.592 | V128: Chillers: Water-Cooled: ReciprocatingALL | W128: =T128 -> 0.54 | X128: 20 | Y128: 20 | Z128: 0.54 | AA128: =ROUNDUP(W128/0.9*0.7,2) -> 0.42 | AB128: =ROUNDUP(W128/0.9*0.6,2) -> 0.36 | AC128: 0 | AD128: 75
S129: 0.54 | T129: =S129 -> 0.54 | U129: New Size Category | V129: Chillers: Water Cooled Scroll, Helical-Rotary or Reciprocating***≤ 75 tons | W129: =T129 -> 0.54 | X129: 20 | Y129: 20 | Z129: 0.54 | AA129: =ROUNDUP(W129/0.9*0.7,2) -> 0.42 | AB129: =ROUNDUP(W129/0.9*0.6,2) -> 0.36 | AC129: 0 | AD129: 75
S130: 0.504 | T130: =S130 -> 0.504 | U130: 0.575 | V130: Chillers: Water Cooled Scroll, Helical-Rotary or Reciprocating***> 75 tons and ≤ 150 tons | W130: =T130 -> 0.504 | X130: 20 | Y130: 20 | Z130: 0.54 | AA130: =ROUNDUP(W130/0.9*0.7,2) -> 0.4 | AB130: =ROUNDUP(W130/0.9*0.6,2) -> 0.34 | AC130: 75 | AD130: 150
S131: 0.486 | T131: =S131 -> 0.486 | U131: 0.534 | V131: Chillers: Water Cooled Scroll, Helical-Rotary or Reciprocating***>150 tons and ≤ 300 tons | W131: =T131 -> 0.486 | X131: 20 | Y131: 20 | Z131: 0.5 | AA131: =ROUNDUP(W131/0.9*0.7,2) -> 0.38 | AB131: =ROUNDUP(W131/0.9*0.6,2) -> 0.33 | AC131: 150 | AD131: 300 | AP131: Chillers: Air-Cooled | AQ131: Unitary and Split Air Conditioning Systems | AR131: Chillers: Water Cooled Scroll, Helical-Rotary or Reciprocating*** | AS131: Chillers: Water-Cooled, Centrifugal*** | AT131: Air Source Heat Pumps | AU131: Variable Refrigerant Flow HP | AV131: Packaged Terminal AC | AW131: Packaged Terminal HP
S132: 0.468 | T132: =S132 -> 0.468 | U132: 0.486 | V132: Chillers: Water Cooled Scroll, Helical-Rotary or Reciprocating***> 300 tons and ≤ 600 tons | W132: =T132 -> 0.468 | X132: 20 | Y132: 20 | Z132: 0.46 | AA132: =ROUNDUP(W132/0.9*0.7,2) -> 0.37 | AB132: =ROUNDUP(W132/0.9*0.6,2) -> 0.32 | AC132: 300 | AD132: 600 | AP132: ≤ 150 | AQ132: < 65,000 Btu/h (5.4 tons) | AR132: ≤ 75 tons | AS132: ≤ 150 tons | AT132: < 65,000 Btu/h (5.4 tons) | AU132: < 65,000 Btu/h (5.4 tons) | AV132: ALL | AW132: ALL
S133: 0.45 | T133: =S133 -> 0.45 | U133: New Size Category | V133: Chillers: Water Cooled Scroll, Helical-Rotary or Reciprocating***> 600 tons | W133: =T133 -> 0.45 | X133: 20 | Y133: 20 | Z133: 0.42 | AA133: =ROUNDUP(W133/0.9*0.7,2) -> 0.35 | AB133: =ROUNDUP(W133/0.9*0.6,2) -> 0.3 | AC133: 600 | AD133: 10000 | AP133: > 150 | AQ133: ≥ 65,000 Btu/h and < 135,000 Btu/h (5.4-11.25 tons) | AR133: > 75 tons and ≤ 150 tons | AS133: >150 tons and ≤ 300 tons | AT133: ≥ 65,000 Btu/h and < 135,000 Btu/h (5.4-11.25 tons) | AU133: ≥ 65,000 Btu/h and < 135,000 Btu/h (5.4-11.25 tons)
S134: 0.788 | T134: =S134 -> 0.788 | U134: 0.867 | V134: Chillers: Air-Cooled≤ 150 | W134: =T134 -> 0.788 | X134: 40 | Y134: 20 | Z134: =ROUND(W134/0.9*0.8,2) -> 0.7 | AA134: =ROUNDUP(W134/0.9*0.7,2) -> 0.62 | AB134: =ROUNDUP(W134/0.9*0.6,2) -> 0.53 | AC134: 0 | AD134: 150 | AQ134: ≥ 135,000 Btu/h and < 240,000 Btu/h (11.25-20 tons) | AR134: >150 tons and ≤ 300 tons | AS134: > 300 tons to ≤ 400 tons | AT134: ≥ 135,000 Btu/h and < 240,000 Btu/h (11.25-20 tons) | AU134: ≥ 135,000 Btu/h and < 240,000 Btu/h (11.25-20 tons)
S135: 0.771 | T135: =S135 -> 0.771 | U135: 0.867 | V135: Chillers: Air-Cooled> 150 | W135: =T135 -> 0.771 | X135: 40 | Y135: 20 | Z135: =ROUND(W135/0.9*0.8,2) -> 0.69 | AA135: =ROUNDUP(W135/0.9*0.7,2) -> 0.6 | AB135: =ROUNDUP(W135/0.9*0.6,2) -> 0.52 | AC135: 150 | AD135: 100000 | AQ135: ≥ 240,000 Btu/h and < 760,000 Btu/h (20-63 Tons) | AR135: > 300 tons and ≤ 600 tons | AS135: > 400 tons to ≤ 600 tons | AT135: ≥ 240,000 Btu/h and < 760,000 Btu/h (20-63 Tons) | AU135: ≥ 240,000 Btu/h (20 Tons)
S136: 14.5 | T136: =S136 -> 14.5 | U136: =12.5-(0.213*B39*12000/1000) -> 12.5 | V136: Packaged Terminal ACALL | W136: =T136 -> 14.5 | X136: 50 | Y136: 0 | Z136: =W136+1 -> 15.5 | AA136: =Z136+1 -> 16.5 | AB136: =AA136+1 -> 17.5 | AC136: 0 | AD136: 100000 | AQ136: ≥ 760,000 Btu/h (> 63 tons) | AR136: > 600 tons | AS136: > 600
S137: 14.5 | T137: =S137 -> 14.5 | U137: =12.3-(0.213*B40*12000/1000) -> 12.3 | V137: Packaged Terminal HPALL | W137: =T137 -> 14.5 | X137: 100 | Y137: 0 | Z137: =W137+1 -> 15.5 | AA137: =Z137+1 -> 16.5 | AB137: =AA137+1 -> 17.5 | AC137: 0 | AD137: 100000
S138: 15.428592 | T138: =ROUND(S138,1) -> 15.4 | U138: 14.8 | V138: Variable Refrigerant Flow HP≥ 65,000 Btu/h and < 135,000 Btu/h (5.4-11.25 tons) | W138: =T138 -> 15.4 | X138: 40 | Y138: 25 | Z138: =W138+1 -> 16.4 | AA138: =Z138+1 -> 17.4 | AB138: =AA138+1 -> 18.4 | AC138: 5.4 | AD138: 11.25
S139: 14.678591 | T139: =ROUND(S139,1) -> 14.7 | U139: 14.2 | V139: Variable Refrigerant Flow HP≥ 135,000 Btu/h and < 240,000 Btu/h (11.25-20 tons) | W139: =T139 -> 14.7 | X139: 40 | Y139: 25 | Z139: =W139+1 -> 15.7 | AA139: =Z139+1 -> 16.7 | AB139: =AA139+1 -> 17.7 | AC139: 11.25 | AD139: 20
S140: 13.392875 | T140: =ROUND(S140,1) -> 13.4 | U140: 12.7 | V140: Variable Refrigerant Flow HP≥ 240,000 Btu/h (20 Tons) | W140: =T140 -> 13.4 | X140: 40 | Y140: 25 | Z140: =W140+1 -> 14.4 | AA140: =Z140+1 -> 15.4 | AB140: =AA140+1 -> 16.4 | AC140: 20 | AD140: 63
S141: 13.92859 | T141: =ROUND(S141,1) -> 13.9 | U141: 15.6 | V141: Variable Refrigerant Flow HP< 65,000 Btu/h (5.4 tons) | W141: =T141 -> 13.9 | X141: 40 | Y141: 25 | Z141: =W141+1 -> 14.9 | AA141: =Z141+1 -> 15.9 | AB141: =AA141+1 -> 16.9 | AC141: 63 | AD141: 100000
Z143: **used stated values for Level 2, if available. Else was rounded up to the 10s of watts | AL143: Categories | AM143: Column1 | AN143: Column2
AL144: Unitary and Split Air Conditioning Systems | AM144: UnitarySplit | AN144: 1
AL145: Air Source Heat Pumps | AM145: AirSourceHP | AN145: 2
AL146: Variable Refrigerant Flow HP | AM146: VRF | AN146: 3
AL147: Chillers: Water Cooled Scroll, Helical-Rotary or Reciprocating*** | AM147: ChillerHelical | AN147: 4
AL148: Chillers: Water-Cooled, Centrifugal*** | AM148: ChillerCent | AN148: 5
AL149: Chillers: Air-Cooled | AM149: ChillerAir | AN149: 6
AL150: Packaged Terminal AC | AM150: PTAC | AN150: 7
AL151: Packaged Terminal HP | AM151: PTHP | AN151: 8
AL155: Test, Category | AM155: Test, Dropdown
AL156: Unitary and Split Air Conditioning Systems | AM156: < 65,000 Btu/h (5.4 tons)

Sheet Custom
D1: CUSTOM INCENTIVES
A2: Applicant: fill in gray fields | D2: *Please attach supporting documentation as described in the specifications*
A3: Item 1
A4: Description
I9: =IF(ISNUMBER(F5)=TRUE,F5,0) -> 0
A16: Information | E16: $/kWh | F16: Subtotal
A18: Annual kWh Savings | E18: 0.08 | F18: =IF(AND(D18>0,D24>0,D26>0),MIN(D18*E18,D24,0.5*D26),0) -> 0
A20: kW Savings
A22: Annual Operating Hours | I22: =IF(ISNUMBER(F18)=TRUE,F18,0) -> 0
A24: Incremental Measure Cost
A26: Total Project Cost
A28: Simple Payback | D28: =IFERROR(ROUND(D24/(D18*0.11+F18+D20*12),1)&" Years","") -> 
